bitfinex-derivatives/quotes_SOLF0:USTF0_20250415
["timestamp","ask_amount","ask_price","bid_price","bid_amount"]
[1744742147454,13.33213882,127.74,127.71,7.8308]
[1744742147658,17.38843882,127.76,127.71,7.8308]
[1744742148253,7.8297,127.73,127.71,7.8308]
[1744742148459,7.88250992,127.73,127.71,7.88337609]
[1744742148756,0.05280992,127.73,127.71,7.88337609]
[1744742148954,0.05280992,127.73,127.72,7.8302]
[1744742149657,21.15903882,127.78,127.74,7.8284]
[1744742149854,13.33213882,127.8,127.74,30.72]
[1744742150556,13.33213882,127.78,127.74,30.72]
[1744742150755,0.05483016,127.77,127.75,0.05964392]
[1744742151156,7.88233016,127.77,127.75,0.05964392]
[1744742151956,0.05483016,127.77,127.75,0.05964392]
[1744742152555,7.88233016,127.77,127.75,0.05964392]
[1744742153358,21.15993882,127.76,127.75,0.05964392]
[1744742153559,13.33213882,127.76,127.71,30.72]
[1744742154460,0.05477927,127.75,127.72,0.05111951]
[1744742154759,7.88347927,127.75,127.72,0.05111951]
[1744742155661,13.33213882,127.74,127.72,0.05111951]
[1744742155858,13.33213882,127.74,127.71,30.72]
[1744742156061,13.33213882,127.72,127.68,594.5]
[1744742156561,7.8314,127.71,127.68,594.5]
[1744742156762,7.88670409,127.71,127.68,594.5545888]
[1744742157157,7.8314,127.7,127.68,594.5545888]
[1744742157558,0.05530409,127.71,127.68,30.7745888]
[1744742157759,7.832,127.69,127.68,30.7745888]
[1744742158662,13.33213882,127.7,127.62,576.93213882]
[1744742158663,7.8341,127.66,127.64,30.72]
[1744742159162,13.33213882,127.69,127.64,30.72]
[1744742159558,13.33213882,127.69,127.65,0.05463729]
[1744742159763,0.05895299,127.68,127.65,0.05463729]
[1744742160259,13.33213882,127.67,127.65,0.05463729]
[1744742161167,7.8339,127.66,127.65,0.05463729]
[1744742161563,0.05895299,127.68,127.65,0.05463729]
[1744742161863,0.05895299,127.68,127.65,2.09483729]
[1744742162064,0.05895299,127.68,127.65,6.36023729]
[1744742162366,0.05895299,127.68,127.67,7.8333]
[1744742162566,0.05895299,127.68,127.67,38.5533]
[1744742163362,13.33213882,127.73,127.67,30.72]
[1744742163866,7.8307,127.72,127.68,7.8324]
[1744742164268,7.8307,127.72,127.69,0.05733343]
[1744742164269,0.05593898,127.71,127.69,0.05733343]
[1744742165066,13.3880778,127.71,127.69,0.05733343]
[1744742166172,7.8314,127.7,127.69,0.05733343]
[1744742167863,0.05593898,127.71,127.69,0.05733343]
[1744742168065,15.40783882,127.77,127.71,7.8305]
[1744742168271,15.40783882,127.77,127.7,30.72]
[1744742168467,7.8287,127.75,127.7,30.72]
[1744742168669,15.40783882,127.77,127.7,30.72]
[1744742168967,7.8293,127.74,127.7,30.72]
[1744742169172,0.05671499,127.73,127.71,0.05301826]
[1744742169361,0.05671499,127.73,127.71,7.88381826]
[1744742169562,0.05671499,127.73,127.71,0.05301826]
[1744742169965,0.05671499,127.73,127.72,7.8302]
[1744742171668,13.33213882,127.81,127.72,21.15213882]
[1744742171871,13.33213882,127.81,127.73,32.8817]
[1744742172070,30.72,127.84,127.74,7.8287]
[1744742172071,13.33213882,127.79,127.74,7.8287]
[1744742172268,13.33213882,127.77,127.73,30.72]
[1744742172473,7.8279,127.76,127.73,30.72]
[1744742172771,0.05438653,127.76,127.74,0.04953973]
[1744742172967,7.8284,127.75,127.74,0.04953973]
[1744742173174,0.05438653,127.76,127.74,0.04953973]
[1744742173573,7.88258653,127.76,127.74,0.04953973]
[1744742173773,0.05438653,127.76,127.74,0.04953973]
[1744742174175,13.33213882,127.75,127.74,0.04953973]
[1744742174879,21.16053882,127.75,127.74,0.04953973]
[1744742176779,7.8284,127.75,127.74,0.04953973]
[1744742177077,7.88238653,127.76,127.74,0.04953973]
[1744742178478,0.05438653,127.76,127.75,7.8284]
[1744742179677,0.05438653,127.76,127.74,7.87823973]
[1744742179878,0.05438653,127.76,127.74,0.04953973]
[1744742180077,7.88218653,127.76,127.74,0.04953973]
[1744742180878,7.8284,127.75,127.74,0.04953973]
[1744742181079,0.05438653,127.76,127.74,0.04953973]
[1744742181877,21.16053882,127.75,127.74,0.04953973]
[1744742182383,0.05438653,127.76,127.74,0.04953973]
[1744742183381,0.05438653,127.76,127.75,7.8284]
[1744742186378,13.33213882,127.83,127.79,7.8255]
[1744742186580,13.33213882,127.83,127.79,38.5255]
[1744742186781,7.8243,127.82,127.79,38.5255]
[1744742187487,7.88050568,127.82,127.79,38.57823405]
[1744742188389,0.05620568,127.82,127.79,30.75273405]
[1744742188589,13.33213882,127.81,127.76,30.68]
[1744742188888,13.33213882,127.78,127.76,30.68]
[1744742189292,7.8271,127.77,127.76,30.68]
[1744742190892,7.8278,127.76,127.75,0.05920168]
[1744742191086,21.15993882,127.76,127.75,0.05920168]
[1744742192485,21.15993882,127.76,127.7,30.68]
[1744742192486,13.33213882,127.76,127.7,30.68]
[1744742192685,13.33213882,127.73,127.7,30.68]
[1744742192887,7.8306,127.72,127.7,38.5113]
[1744742193492,7.88379499,127.72,127.7,38.56891176]
[1744742193690,7.88379499,127.72,127.7,30.73761176]
[1744742197895,7.8308,127.71,127.7,30.73761176]
[1744742198696,29.17806131,127.71,127.7,0.05761176]
[1744742199191,0.05319499,127.72,127.7,0.05761176]
[1744742199490,0.05319499,127.72,127.7,30.75761176]
[1744742199690,0.05319499,127.72,127.71,7.8308]
[1744742200300,0.05319499,127.72,127.7,30.75761176]
[1744742200593,7.88369499,127.72,127.7,30.75761176]
[1744742200791,0.05319499,127.72,127.7,30.75761176]
[1744742200994,0.05319499,127.72,127.7,0.05761176]
[1744742201196,21.34726131,127.71,127.7,0.05761176]
[1744742201394,7.8308,127.71,127.7,0.05761176]
[1744742202998,7.8327,127.68,127.67,30.7]
[1744742203395,2.1482,127.7,127.65,7.8344]
[1744742203992,0.05627519,127.69,127.66,0.05111679]
[1744742204197,0.05627519,127.69,127.66,7.88491679]
[1744742204497,0.05627519,127.69,127.66,0.05111679]
[1744742204995,0.05627519,127.69,127.67,30.7]
[1744742205192,0.05627519,127.69,127.67,38.5329]
[1744742205392,0.05627519,127.69,127.67,30.7]
[1744742205791,54.1761,127.8,127.67,30.7]
[1744742205987,25.61566131,127.79,127.69,21.34726131]
[1744742206190,7.8275,127.77,127.74,7.8286]
[1744742206391,7.8275,127.77,127.74,38.5286]
[1744742206792,7.8275,127.77,127.74,38.58826248]
[1744742206996,7.88061014,127.77,127.74,38.58826248]
[1744742207398,0.05311014,127.77,127.74,30.75966248]
[1744742207695,21.40037145,127.77,127.74,0.05966248]
[1744742207897,7.8284,127.75,127.74,0.05966248]
[1744742208198,2.0967,127.76,127.71,30.68]
[1744742208496,2.0967,127.76,127.71,38.5107]
[1744742208798,2.0967,127.76,127.71,30.68]
[1744742208998,7.8299,127.73,127.71,30.68]
[1744742209297,0.05210289,127.75,127.72,0.05480519]
[1744742209598,7.8293,127.74,127.72,0.05480519]
[1744742210701,7.8296,127.73,127.72,0.05480519]
[1744742211599,7.8293,127.74,127.72,0.05480519]
[1744742212502,7.8296,127.73,127.72,0.05480519]
[1744742212704,0.05210289,127.75,127.72,0.05480519]
[1744742213103,0.05210289,127.75,127.73,7.8294]
[1744742213805,0.05210289,127.75,127.74,30.68]
[1744742214196,7.88050289,127.75,127.74,30.68]
[1744742218606,0.05210289,127.75,127.74,30.68]
[1744742220409,7.88050289,127.75,127.74,30.68]
[1744742221309,0.05210289,127.75,127.74,38.509]
[1744742221508,13.33438548,127.79,127.74,30.68]
[1744742222509,0.0546771,127.78,127.75,0.05768313]
[1744742223208,0.0546771,127.78,127.75,7.88578313]
[1744742223405,0.0546771,127.78,127.75,0.05768313]
[1744742223707,0.0546771,127.78,127.76,7.8278]
[1744742224098,0.0546771,127.78,127.77,30.68]
[1744742224710,7.8811771,127.78,127.77,30.68]
[1744742225110,0.0546771,127.78,127.75,0.05768313]
[1744742225312,7.8278,127.76,127.75,0.05768313]
[1744742226010,7.8275,127.77,127.75,0.05768313]
[1744742226801,7.8814771,127.78,127.75,0.05768313]
[1744742227111,0.0546771,127.78,127.75,0.05768313]
[1744742227302,7.8274,127.77,127.75,0.05768313]
[1744742227711,0.0546771,127.78,127.75,0.05768313]
[1744742228210,0.0546771,127.78,127.76,7.8273]
[1744742229009,7.8814771,127.78,127.75,0.05768313]
[1744742229313,7.8814771,127.78,127.75,7.88568313]
[1744742229510,0.0546771,127.78,127.75,0.05768313]
[1744742229711,0.0546771,127.78,127.77,7.8271]
[1744742230013,0.0546771,127.78,127.77,30.68]
[1744742230608,7.8811771,127.78,127.77,30.68]
[1744742232014,7.8811771,127.78,127.75,7.88598313]
[1744742232213,0.0546771,127.78,127.76,7.8277]
[1744742233319,0.0546771,127.78,127.77,7.8271]
[1744742233919,0.0546771,127.78,127.76,7.8274]
[1744742235220,7.8814771,127.78,127.75,38.56568313]
[1744742235420,0.0546771,127.78,127.75,30.73768313]
[1744742236326,7.8278,127.76,127.75,30.73768313]
[1744742236520,0.0546771,127.78,127.75,30.73768313]
[1744742236721,7.8277,127.77,127.75,30.73768313]
[1744742238126,7.8277,127.77,127.75,38.56598313]
[1744742238925,0.0546771,127.78,127.76,7.8277]
[1744742239127,0.0546771,127.78,127.75,30.73768313]
[1744742239628,0.0546771,127.78,127.76,7.8275]
[1744742240029,0.0546771,127.78,127.75,30.73768313]
[1744742240231,7.8814771,127.78,127.75,30.73768313]
[1744742241129,7.8814771,127.78,127.76,7.8275]
[1744742241333,7.8271,127.77,127.75,30.73768313]
[1744742241931,7.8278,127.76,127.75,30.73768313]
[1744742242331,13.33438548,127.77,127.69,594.08]
[1744742242531,13.33438548,127.73,127.69,594.08]
[1744742243129,7.8299,127.73,127.7,7.8309]
[1744742243332,0.05836892,127.73,127.7,0.05953267]
[1744742243831,0.05836892,127.73,127.71,7.8305]
[1744742244132,0.05836892,127.73,127.7,0.05953267]
[1744742244432,7.8305,127.72,127.7,7.89063267]
[1744742244833,0.05836892,127.73,127.7,0.05953267]
[1744742245333,7.88826892,127.73,127.71,7.8305]
[1744742245632,7.88826892,127.73,127.7,0.05953267]
[1744742245827,7.88826892,127.73,127.7,7.89073267]
[1744742246530,7.88826892,127.73,127.71,7.8307]
[1744742247130,7.88826892,127.73,127.7,7.89073267]
[1744742248831,13.3927544,127.73,127.7,0.05953267]
[1744742250337,7.8302,127.72,127.7,0.05953267]
[1744742251238,0.05836892,127.73,127.71,7.8305]
[1744742251536,0.05836892,127.73,127.7,0.05953267]
[1744742251736,7.8303,127.72,127.7,0.05953267]
[1744742252840,21.2226544,127.73,127.7,7.89083267]
[1744742253041,13.3927544,127.73,127.7,7.89083267]
[1744742254139,7.8303,127.72,127.7,7.89083267]
[1744742254842,0.05836892,127.73,127.7,0.05953267]
[1744742255440,0.05836892,127.73,127.72,7.8302]
[1744742255631,0.05836892,127.73,127.72,38.5102]
[1744742256139,0.05836892,127.73,127.72,30.68]
[1744742256340,13.3927544,127.73,127.7,0.05953267]
[1744742256541,13.33438548,127.71,127.7,0.05953267]
[1744742256835,21.16518548,127.71,127.7,0.05953267]
[1744742258241,13.33438548,127.71,127.66,30.68]
[1744742258437,13.33438548,127.69,127.66,30.68]
[1744742258635,13.33438548,127.69,127.66,38.5136]
[1744742258835,21.16668548,127.69,127.66,38.5136]
[1744742259140,13.33438548,127.69,127.66,30.68]
[1744742259341,7.8329,127.68,127.66,30.73169722]
[1744742260040,21.22670177,127.69,127.66,38.56549722]
[1744742260546,7.89231629,127.69,127.66,38.56549722]
[1744742261142,13.39430177,127.69,127.66,30.73169722]
[1744742261542,21.16768548,127.67,127.66,0.05169722]
[1744742261741,7.8333,127.67,127.66,0.05169722]
[1744742262241,7.833,127.68,127.66,0.05169722]
[1744742262644,13.39430177,127.69,127.66,0.05169722]
[1744742262942,7.8333,127.67,127.66,0.05169722]
[1744742263241,13.39430177,127.69,127.66,0.05169722]
[1744742263439,0.05991629,127.69,127.66,30.73169722]
[1744742266548,7.8333,127.67,127.66,30.73169722]
[1744742267249,7.8333,127.67,127.66,0.05169722]
[1744742269750,0.05991629,127.69,127.66,0.05169722]
[1744742270152,7.8327,127.68,127.66,0.05169722]
[1744742271253,7.8333,127.67,127.66,0.05169722]
[1744742272352,0.05991629,127.69,127.66,0.05169722]
[1744742272551,0.05991629,127.69,127.66,30.73169722]
[1744742272852,7.89221629,127.69,127.66,38.56529722]
[1744742273147,0.05991629,127.69,127.66,38.56529722]
[1744742273854,0.05991629,127.69,127.67,7.8332]
[1744742274055,0.05991629,127.69,127.66,30.73169722]
[1744742274954,0.05991629,127.69,127.68,7.8327]
[1744742275155,15.38918548,127.74,127.66,44.0660827]
[1744742275344,15.38918548,127.74,127.66,44.01438548]
[1744742275656,7.8302,127.73,127.66,44.01438548]
[1744742275953,15.38918548,127.74,127.66,44.01438548]
[1744742276254,7.8317,127.7,127.69,0.05812387]
[1744742277254,7.88691743,127.71,127.69,0.05812387]
[1744742277855,7.8314,127.7,127.69,0.05812387]
[1744742278452,21.16578548,127.7,127.69,0.05812387]
[1744742283355,7.88671743,127.71,127.69,0.05812387]
[1744742283555,0.05571743,127.71,127.69,0.05812387]
[1744742285158,7.8314,127.7,127.69,0.05812387]
[1744742287461,0.05571743,127.71,127.69,0.05812387]
[1744742288059,7.88701743,127.71,127.69,7.89002387]
[1744742288561,0.05571743,127.71,127.69,0.05812387]
[1744742288748,0.05571743,127.71,127.69,30.73812387]
[1744742289260,0.05571743,127.71,127.7,7.8314]
[1744742294057,0.05571743,127.71,127.69,38.56972387]
[1744742294264,0.05571743,127.71,127.69,30.73812387]
[1744742294659,7.88691743,127.71,127.69,38.57002387]
[1744742296366,7.88691743,127.71,127.69,30.73812387]
[1744742297567,7.88691743,127.71,127.69,38.57012387]
[1744742298669,0.05571743,127.71,127.69,38.57012387]
[1744742299466,0.05571743,127.71,127.7,7.8314]
[1744742299769,0.05571743,127.71,127.69,30.73812387]
[1744742299964,0.05571743,127.71,127.69,38.56992387]
[1744742301372,7.88661743,127.71,127.69,30.73812387]
[1744742302073,0.05571743,127.71,127.69,30.73812387]
[1744742302771,0.05571743,127.71,127.7,7.8314]
[1744742305766,7.8287,127.75,127.72,7.8297]
[1744742305966,7.8287,127.75,127.72,38.4897]
[1744742306669,7.88389069,127.75,127.72,38.54775652]
[1744742306872,0.05519069,127.75,127.72,30.71805652]
[1744742307569,0.05519069,127.75,127.74,7.829]
[1744742308367,2.187,127.81,127.73,13.33438548]
[1744742309369,7.8264,127.79,127.76,7.8275]
[1744742309562,0.0532749,127.78,127.76,30.69574454]
[1744742311070,7.8271,127.77,127.76,0.05574454]
[1744742312074,13.38766038,127.78,127.73,30.64]
[1744742312270,13.33438548,127.76,127.73,30.64]
[1744742312676,7.8302,127.73,127.7,32.7291]
[1744742312973,13.33438548,127.74,127.7,30.64]
[1744742313176,21.16458548,127.72,127.71,0.0549399]
[1744742313973,7.8302,127.72,127.71,0.0549399]
[1744742315277,0.04958965,127.73,127.71,0.0549399]
[1744742315782,0.04958965,127.73,127.71,7.8853399]
[1744742316478,7.87928965,127.73,127.71,0.0549399]
[1744742317079,7.8302,127.72,127.71,0.0549399]
[1744742321484,0.04958965,127.73,127.71,0.0549399]
[1744742321986,0.04958965,127.73,127.72,30.66]
[1744742323288,0.04958965,127.73,127.72,38.4902]
[1744742324994,365.0,127.78,127.75,7.8283]
[1744742325193,13.33438548,127.8,127.75,38.4683]
[1744742325392,7.8272,127.77,127.75,30.64]
[1744742325893,7.88635013,127.77,127.75,30.6988262]
[1744742326093,7.88635013,127.77,127.75,38.5271262]
[1744742326589,7.8278,127.76,127.75,30.6988262]
[1744742328792,7.88635013,127.77,127.75,30.6988262]
[1744742330796,7.88635013,127.77,127.75,38.5272262]
[1744742330997,7.88635013,127.77,127.75,30.6988262]
[1744742331390,7.88635013,127.77,127.75,38.5271262]
[1744742332395,0.05915013,127.77,127.76,7.8278]
[1744742333393,0.05915013,127.77,127.75,30.6988262]
[1744742333895,7.8278,127.76,127.75,30.6988262]
[1744742334297,21.16218548,127.76,127.75,0.0588262]
[1744742339905,7.8278,127.76,127.75,0.0588262]
[1744742340203,0.05915013,127.77,127.75,0.0588262]
[1744742340603,7.8278,127.76,127.75,0.0588262]
[1744742343907,13.33438548,127.76,127.72,30.64]
[1744742344108,13.33438548,127.73,127.69,30.64]
[1744742344407,13.33438548,127.73,127.69,38.4716]
[1744742344607,13.33438548,127.73,127.69,30.64]
[1744742344808,13.33438548,127.75,127.69,30.64]
[1744742345007,0.05112009,127.73,127.71,0.05896049]
[1744742345603,0.05112009,127.73,127.72,38.4702]
[1744742347312,17.42578548,127.8,127.72,30.64]
[1744742347607,17.42578548,127.8,127.73,2.1682]
[1744742347809,7.8265,127.79,127.76,7.8275]
[1744742348009,7.8265,127.79,127.76,38.4675]
[1744742348310,7.87682315,127.79,127.76,38.52695387]
[1744742348810,7.8266,127.78,127.76,38.52695387]
[1744742350016,0.05042315,127.79,127.76,30.69945387]
[1744742350210,0.05042315,127.79,127.76,0.05945387]
[1744742351713,7.8271,127.77,127.76,0.05945387]
[1744742354217,7.8268,127.78,127.76,0.05945387]
[1744742354616,0.05042315,127.79,127.76,0.05945387]
[1744742355118,7.8271,127.77,127.76,0.05945387]
[1744742355315,0.05042315,127.79,127.76,0.05945387]
[1744742355617,7.87682315,127.79,127.76,30.69945387]
[1744742355811,0.05042315,127.79,127.76,30.69945387]
[1744742356008,0.05042315,127.79,127.77,7.827]
[1744742356518,7.87662315,127.79,127.77,7.827]
[1744742357722,7.8265,127.78,127.76,38.52685387]
[1744742359724,7.87662315,127.79,127.77,7.8271]
[1744742360427,7.8265,127.78,127.76,38.52685387]
[1744742360828,0.05042315,127.79,127.76,30.69945387]
[1744742361021,7.87672315,127.79,127.77,7.8271]
[1744742362230,0.05042315,127.79,127.78,7.8265]
[1744742362431,0.05042315,127.79,127.76,30.69945387]
[1744742362630,7.87662315,127.79,127.77,7.8268]
[1744742363632,7.8266,127.78,127.76,38.52685387]
[1744742363834,7.8266,127.78,127.76,30.69945387]
[1744742364030,0.05042315,127.79,127.76,30.69945387]
[1744742364232,13.33438548,127.78,127.7,30.62]
[1744742364427,13.33438548,127.75,127.7,30.62]
[1744742364733,13.33438548,127.73,127.7,30.62]
[1744742365232,13.38658386,127.73,127.7,30.67228131]
[1744742367238,7.8308,127.71,127.7,30.67228131]
[1744742368135,7.8305,127.72,127.7,30.67228131]
[1744742368932,7.8305,127.72,127.7,38.50338131]
[1744742369137,13.38658386,127.73,127.7,30.67228131]
[1744742369838,7.8302,127.72,127.7,30.67228131]
[1744742370238,13.38658386,127.73,127.7,30.67228131]
[1744742370629,0.05219838,127.73,127.7,30.67228131]
[1744742371141,45.98618548,127.79,127.7,30.67228131]
[1744742371440,13.33438548,127.79,127.71,13.33438548]
[1744742371640,7.8274,127.77,127.74,7.8285]
[1744742371834,7.8274,127.77,127.74,38.4485]
[1744742372140,7.8849275,127.77,127.74,38.50823239]
[1744742372341,0.0575275,127.77,127.74,30.67973239]
[1744742372943,7.8281,127.76,127.74,30.67973239]
[1744742373241,0.0575275,127.77,127.74,30.67973239]
[1744742373645,7.8847275,127.77,127.74,38.50823239]
[1744742373846,7.8847275,127.77,127.74,30.67973239]
[1744742374144,0.0575275,127.77,127.74,30.67973239]
[1744742374946,7.8848275,127.77,127.74,38.50813239]
[1744742375646,7.8279,127.76,127.74,30.67973239]
[1744742375847,0.0575275,127.77,127.74,30.67973239]
[1744742377149,7.8284,127.75,127.74,30.67973239]
[1744742378948,7.8284,127.75,127.74,0.05973239]
[1744742379348,7.8281,127.76,127.74,0.05973239]
[1744742379750,7.8284,127.75,127.74,0.05973239]
[1744742383249,7.8302,127.72,127.71,30.62]
[1744742383449,13.33438548,127.72,127.68,32.7735]
[1744742383947,7.8317,127.7,127.68,32.7735]
[1744742384451,7.8317,127.7,127.68,32.82807137]
[1744742384452,7.89191825,127.7,127.68,32.82807137]
[1744742387652,0.06021825,127.7,127.68,30.67457137]
[1744742388956,0.06021825,127.7,127.69,7.832]
[1744742396058,7.8291,127.74,127.71,7.8305]
[1744742396253,7.8291,127.74,127.71,38.4305]
[1744742396956,7.88819324,127.74,127.71,38.48128981]
[1744742399561,0.05909324,127.74,127.72,8.53529359]
[1744742400161,0.05909324,127.74,127.71,30.65078981]
[1744742400660,7.88849324,127.74,127.72,7.8298]
[1744742402962,0.05909324,127.74,127.71,30.65078981]
[1744742403157,8.53529359,127.72,127.65,30.6]
[1744742403458,8.53529359,127.7,127.66,30.6]
[1744742403660,16.36709359,127.7,127.67,7.833]
[1744742403961,7.8318,127.7,127.67,7.833]
[1744742404264,0.05111554,127.7,127.68,8.53529359]
[1744742404561,8.53529359,127.75,127.69,39.13529359]
[1744742404756,8.53529359,127.73,127.69,46.96699359]
[1744742405360,4.2331,127.77,127.69,38.4317]
[1744742405361,7.8305,127.72,127.69,38.4317]
[1744742405660,7.88540612,127.72,127.7,0.05963576]
[1744742405862,7.88540612,127.72,127.7,7.89093576]
[1744742406562,0.05490612,127.72,127.7,0.05963576]
[1744742407164,0.05490612,127.72,127.7,7.89073576]
[1744742408965,0.05490612,127.72,127.71,7.8308]
[1744742410262,0.05490612,127.72,127.7,7.89073576]
[1744742410663,0.05490612,127.72,127.7,0.05963576]
[1744742411066,7.88540612,127.72,127.7,0.05963576]
[1744742411269,0.05490612,127.72,127.7,0.05963576]
[1744742411569,7.8308,127.71,127.7,0.05963576]
[1744742420974,7.88560612,127.72,127.7,0.05963576]
[1744742422775,7.8308,127.71,127.7,0.05963576]
[1744742424473,7.88540612,127.72,127.7,0.05963576]
[1744742424677,0.05490612,127.72,127.7,0.05963576]
[1744742425276,4.2331,127.77,127.7,13.39897434]
[1744742425477,7.828,127.76,127.7,17.62657434]
[1744742425975,7.828,127.76,127.73,7.8295]
[1744742426172,7.8274,127.77,127.73,30.58]
[1744742426373,0.0512525,127.76,127.73,30.63278106]
[1744742426979,7.8792525,127.76,127.73,30.63278106]
[1744742427379,0.0512525,127.76,127.73,30.63278106]
[1744742427678,0.0512525,127.76,127.74,7.8289]
[1744742427876,0.0512525,127.76,127.73,30.63278106]
[1744742428077,7.8790525,127.76,127.73,38.46188106]
[1744742428878,7.8287,127.75,127.73,30.63278106]
[1744742429281,16.36335908,127.75,127.73,30.63278106]
[1744742429782,16.41391158,127.76,127.73,38.46208106]
[1744742430176,0.0512525,127.76,127.73,39.16744014]
[1744742430383,0.0512525,127.76,127.75,7.8284]
[1744742431380,0.0512525,127.76,127.74,7.8287]
[1744742431581,0.0512525,127.76,127.73,39.16744014]
[1744742431881,0.0512525,127.76,127.74,7.8289]
[1744742433382,8.58591158,127.76,127.73,30.63278106]
[1744742433686,8.53465908,127.74,127.66,30.58]
[1744742433887,8.53465908,127.69,127.67,7.8331]
[1744742434080,16.36645908,127.7,127.67,7.8331]
[1744742434587,7.832,127.69,127.67,0.0543149]
[1744742434782,8.58861231,127.7,127.67,0.0543149]
[1744742435087,7.88565323,127.7,127.67,0.0543149]
[1744742435281,7.88565323,127.7,127.67,7.8873149]
[1744742435781,7.88565323,127.7,127.68,7.8326]
[1744742436381,0.05395323,127.7,127.68,7.8326]
[1744742436581,0.05395323,127.7,127.69,38.412]
[1744742436784,2.1765,127.75,127.69,30.58]
[1744742436986,2.1776,127.78,127.71,13.34453266]
[1744742437182,2.1776,127.78,127.73,7.8293]
[1744742437794,7.8281,127.76,127.74,0.05661775]
[1744742438685,7.8284,127.75,127.74,0.05661775]
[1744742438889,13.34453266,127.76,127.72,30.58]
[1744742439392,7.8295,127.74,127.72,30.58]
[1744742439587,13.34453266,127.76,127.72,30.58]
[1744742439794,0.05867813,127.75,127.73,0.05019826]
[1744742440693,7.829,127.74,127.73,0.05019826]
[1744742446398,21.17353266,127.74,127.73,0.05019826]
[1744742446690,13.34453266,127.74,127.69,30.58]
[1744742446890,13.34453266,127.72,127.69,30.58]
[1744742447091,7.832,127.7,127.66,30.58]
[1744742447285,13.34453266,127.72,127.66,30.58]
[1744742447496,0.05105574,127.7,127.68,0.05042675]
[1744742448191,7.832,127.69,127.68,0.05042675]
[1744742448996,7.88285574,127.7,127.68,0.05042675]
[1744742450496,7.832,127.69,127.68,0.05042675]
[1744742452700,7.88285574,127.7,127.68,0.05042675]
[1744742454598,7.832,127.69,127.68,0.05042675]
[1744742456800,7.8333,127.67,127.66,30.58]
[1744742457595,7.833,127.68,127.66,30.58]
[1744742457801,0.05105574,127.7,127.66,30.63835778]
[1744742458003,0.05105574,127.7,127.68,7.8324]
[1744742458600,13.3955884,127.7,127.66,38.47205778]
[1744742458898,7.833,127.68,127.66,38.47205778]
[1744742459601,7.833,127.68,127.66,30.63835778]
[1744742460397,13.3955884,127.7,127.66,30.63835778]
[1744742460997,0.05105574,127.7,127.66,30.63835778]
[1744742461196,0.05105574,127.7,127.68,13.34453266]
[1744742461396,0.05105574,127.7,127.69,30.58]
[1744742462199,0.05105574,127.7,127.69,38.412]
[1744742462396,0.05105574,127.7,127.69,30.58]
[1744742463203,7.88245574,127.7,127.69,30.58]
[1744742464603,0.05105574,127.7,127.69,38.412]
[1744742466502,384.63503266,127.78,127.69,30.58]
[1744742466813,371.2905,127.78,127.71,13.34453266]
[1744742467106,371.2905,127.78,127.72,38.3899]
[1744742467406,7.829,127.75,127.72,38.3899]
[1744742467705,7.88266624,127.75,127.72,38.44005257]
[1744742468507,0.05366624,127.75,127.73,7.8293]
[1744742469809,7.88246624,127.75,127.73,7.8293]
[1744742470010,0.05366624,127.75,127.72,30.61015257]
[1744742470510,7.8296,127.73,127.72,30.61015257]
[1744742471007,7.8296,127.73,127.72,0.05015257]
[1744742471208,7.8314,127.7,127.69,30.56]
[1744742471409,13.34453266,127.72,127.66,30.56]
[1744742471806,7.8312,127.71,127.66,30.56]
[1744742472111,7.8312,127.71,127.68,7.8321]
[1744742472312,7.88104651,127.71,127.68,7.88489036]
[1744742472813,0.04984651,127.71,127.69,7.8315]
[1744742473008,0.04984651,127.71,127.69,38.3915]
[1744742473713,7.88094651,127.71,127.69,38.3915]
[1744742474012,0.04984651,127.71,127.69,38.3915]
[1744742474413,2.1025,127.76,127.69,30.56]
[1744742474609,2.1025,127.76,127.69,32.6665]
[1744742474814,7.8283,127.76,127.74,7.8289]
[1744742475411,0.05343764,127.76,127.75,7.8284]
[1744742475618,0.05343764,127.76,127.74,0.05163693]
[1744742476117,7.88143764,127.76,127.74,7.88023693]
[1744742476322,0.05343764,127.76,127.74,0.05163693]
[1744742476616,0.05343764,127.76,127.75,30.56]
[1744742476912,0.05343764,127.76,127.75,38.3884]
[1744742477813,2.1911,127.82,127.78,7.8264]
[1744742478019,2.1025,127.83,127.78,38.3864]
[1744742478213,2.1025,127.83,127.78,30.56]
[1744742478913,0.05224051,127.82,127.79,0.05613051]
[1744742480819,0.05224051,127.82,127.79,7.88193051]
[1744742482026,7.8248,127.81,127.79,7.88193051]
[1744742483021,0.05224051,127.82,127.79,0.05613051]